[Event "Titled Tuesday Blitz January 10 Late 2023"]
[White "Winkels, Marcel"]
[Black "Le Goff, Ronan"]
[WhiteFideId "1003887"]
[BlackFideId "612073"]
[WhiteElo "1960"]
[BlackElo "2320"]
[Result "0-1"]
[Round "04"]
[TimeControl "180+2"]
[Date "2023.01.10"]
[WhiteClock "0:00:35"]
[BlackClock "0:01:46"]

1. d4 {[%clk 0:00:00]}  Nf6 {[%clk 0:00:00]} 2. Bg5 {[%clk 0:03:00]}  e6 {[%clk 0:02:59]} 3. Nf3 {[%clk 0:03:01]}  h6 {[%clk 0:03:00]} 4. Bh4 {[%clk 0:02:59]}  b6 {[%clk 0:03:00]} 5. Nc3 {[%clk 0:02:56]}  Bb7 {[%clk 0:02:58]} 6. d5 {[%clk 0:02:55]}  Be7 {[%clk 0:02:59]} 7. e4 {[%clk 0:02:55]}  Nxe4 {[%clk 0:02:59]} 8. Bxe7 {[%clk 0:02:51]}  Qxe7 {[%clk 0:02:56]} 9. Nxe4 {[%clk 0:02:50]}  exd5 {[%clk 0:02:50]} 10. Be2 {[%clk 0:02:49]}  dxe4 {[%clk 0:02:49]} 11. Nd4 {[%clk 0:02:31]}  O-O {[%clk 0:02:48]} 12. O-O {[%clk 0:02:31]}  Nc6 {[%clk 0:02:46]} 13. Nf5 {[%clk 0:02:30]}  Qe5 {[%clk 0:02:45]} 14. Ne3 {[%clk 0:02:27]}  Nd4 {[%clk 0:02:41]} 15. Bc4 {[%clk 0:02:20]}  d5 {[%clk 0:02:39]} 16. Bb3 {[%clk 0:02:12]}  Rad8 {[%clk 0:02:36]} 17. Qd2 {[%clk 0:02:07]}  c5 {[%clk 0:02:35]} 18. c3 {[%clk 0:01:58]}  Ne6 {[%clk 0:02:32]} 19. Rad1 {[%clk 0:01:57]}  d4 {[%clk 0:02:26]} 20. Nc4 {[%clk 0:01:45]}  Qf6 {[%clk 0:02:20]} 21. Rfe1 {[%clk 0:01:43]}  Qg6 {[%clk 0:02:17]} 22. g3 {[%clk 0:01:19]}  Ng5 {[%clk 0:02:12]} 23. Ne5 {[%clk 0:01:15]}  Qf5 {[%clk 0:02:04]} 24. h4 {[%clk 0:00:53]}  Nh3+ {[%clk 0:01:58]} 25. Kh2 {[%clk 0:00:52]}  Nxf2 {[%clk 0:01:53]} 26. Nxf7 {[%clk 0:00:45]}  Ng4+ {[%clk 0:01:52]} 27. Kh1 {[%clk 0:00:35]}  e3+ {[%clk 0:01:46]} 0-1


[Site "https://www.chess.com"]

[Event "Titled Tuesday Blitz January 10 Late 2023"]
[White "Mitrovic, Darko R"]
[Black "Goncalves, Davi Sulzbacher"]
[WhiteFideId "927023"]
[BlackFideId "2154510"]
[WhiteElo "2220"]
[BlackElo "2282"]
[Result "0-1"]
[Round "04"]
[TimeControl "180+2"]
[Date "2023.01.10"]
[WhiteClock "0:00:01"]
[BlackClock "0:00:29"]

1. d4 {[%clk 0:00:00]}  Nf6 {[%clk 0:00:00]} 2. Nf3 {[%clk 0:02:49]}  e6 {[%clk 0:02:59]} 3. g3 {[%clk 0:02:49]}  c5 {[%clk 0:03:00]} 4. Bg2 {[%clk 0:02:50]}  d5 {[%clk 0:03:00]} 5. c3 {[%clk 0:02:43]}  b5 {[%clk 0:03:00]} 6. O-O {[%clk 0:02:40]}  Bb7 {[%clk 0:02:59]} 7. a4 {[%clk 0:02:40]}  a6 {[%clk 0:02:59]} 8. axb5 {[%clk 0:02:29]}  axb5 {[%clk 0:02:59]} 9. Rxa8 {[%clk 0:02:28]}  Bxa8 {[%clk 0:03:00]} 10. Bf4 {[%clk 0:02:28]}  Nbd7 {[%clk 0:03:01]} 11. Nbd2 {[%clk 0:02:06]}  Be7 {[%clk 0:02:57]} 12. Qb3 {[%clk 0:01:58]}  Qa5 {[%clk 0:02:56]} 13. Qc2 {[%clk 0:01:50]}  c4 {[%clk 0:02:51]} 14. b4 {[%clk 0:01:38]}  Qa3 {[%clk 0:02:43]} 15. Qc1 {[%clk 0:01:17]}  Qa4 {[%clk 0:02:34]} 16. Ne5 {[%clk 0:01:12]}  Nxe5 {[%clk 0:02:24]} 17. Bxe5 {[%clk 0:01:07]}  O-O {[%clk 0:02:22]} 18. Bxf6 {[%clk 0:01:01]}  Bxf6 {[%clk 0:02:20]} 19. e4 {[%clk 0:00:57]}  Bg5 {[%clk 0:02:18]} 20. f4 {[%clk 0:00:57]}  Be7 {[%clk 0:01:51]} 21. e5 {[%clk 0:00:56]}  Bxb4 {[%clk 0:01:50]} 22. cxb4 {[%clk 0:00:49]}  Qxb4 {[%clk 0:01:25]} 23. Nf3 {[%clk 0:00:49]}  Bc6 {[%clk 0:01:26]} 24. g4 {[%clk 0:00:41]}  Ra8 {[%clk 0:01:19]} 25. f5 {[%clk 0:00:37]}  Ra2 {[%clk 0:01:17]} 26. f6 {[%clk 0:00:35]}  Qb2 {[%clk 0:01:08]} 27. Qxb2 {[%clk 0:00:28]}  Rxb2 {[%clk 0:00:58]} 28. Ra1 {[%clk 0:00:20]}  gxf6 {[%clk 0:00:59]} 29. exf6 {[%clk 0:00:17]}  h5 {[%clk 0:01:00]} 30. Ra6 {[%clk 0:00:17]}  Bb7 {[%clk 0:00:57]} 31. Rb6 {[%clk 0:00:12]}  c3 {[%clk 0:00:50]} 32. Rxb7 {[%clk 0:00:11]}  c2 {[%clk 0:00:46]} 33. Rc7 {[%clk 0:00:09]}  Rb1+ {[%clk 0:00:32]} 34. Kf2 {[%clk 0:00:02]}  c1=Q {[%clk 0:00:27]} 35. Rxc1 {[%clk 0:00:02]}  Rxc1 {[%clk 0:00:28]} 36. gxh5 {[%clk 0:00:01]}  b4 {[%clk 0:00:29]} 0-1


[Site "https://www.chess.com"]

[Event "Titled Tuesday Blitz January 10 Late 2023"]
[White "Soyunlu, Narmin"]
[Black "Kuznecovs, Nikita"]
[WhiteFideId "13400843"]
[BlackFideId "11604557"]
[WhiteElo "2013"]
[BlackElo "2287"]
[Result "0-1"]
[Round "04"]
[TimeControl "180+2"]
[Date "2023.01.10"]
[WhiteClock "0:00:02"]
[BlackClock "0:01:21"]

1. d4 {[%clk 0:00:00]}  Nf6 {[%clk 0:00:00]} 2. c4 {[%clk 0:03:00]}  e6 {[%clk 0:02:57]} 3. g3 {[%clk 0:03:01]}  c5 {[%clk 0:02:56]} 4. Nf3 {[%clk 0:03:00]}  cxd4 {[%clk 0:02:55]} 5. Nxd4 {[%clk 0:02:59]}  d5 {[%clk 0:02:54]} 6. cxd5 {[%clk 0:02:59]}  Qxd5 {[%clk 0:02:55]} 7. Nf3 {[%clk 0:02:57]}  Qxd1+ {[%clk 0:02:54]} 8. Kxd1 {[%clk 0:02:36]}  Nc6 {[%clk 0:02:52]} 9. Nc3 {[%clk 0:02:37]}  Bc5 {[%clk 0:02:52]} 10. Ke1 {[%clk 0:02:35]}  Nb4 {[%clk 0:02:52]} 11. Rb1 {[%clk 0:02:09]}  e5 {[%clk 0:02:52]} 12. e4 {[%clk 0:01:48]}  Ng4 {[%clk 0:02:42]} 13. Bb5+ {[%clk 0:01:33]}  Kf8 {[%clk 0:02:42]} 14. Nd1 {[%clk 0:01:30]}  Nxa2 {[%clk 0:02:30]} 15. Bd2 {[%clk 0:01:21]}  Be6 {[%clk 0:02:24]} 16. h3 {[%clk 0:01:10]}  Nf6 {[%clk 0:02:21]} 17. Nxe5 {[%clk 0:01:07]}  Nxe4 {[%clk 0:02:20]} 18. Bd7 {[%clk 0:01:04]}  Nxd2 {[%clk 0:02:19]} 19. Ra1 {[%clk 0:00:59]}  Nb4 {[%clk 0:02:14]} 20. Bxe6 {[%clk 0:00:49]}  Nc2+ {[%clk 0:01:51]} 21. Kxd2 {[%clk 0:00:41]}  Nxa1 {[%clk 0:01:44]} 22. Nc3 {[%clk 0:00:41]}  Rd8+ {[%clk 0:01:44]} 23. Nd7+ {[%clk 0:00:10]}  Ke7 {[%clk 0:01:36]} 24. Ke2 {[%clk 0:00:04]}  fxe6 {[%clk 0:01:36]} 25. Nxc5 {[%clk 0:00:04]}  Nc2 {[%clk 0:01:35]} 26. N3e4 {[%clk 0:00:05]}  Nd4+ {[%clk 0:01:34]} 27. Ke3 {[%clk 0:00:04]}  b6 {[%clk 0:01:30]} 28. Nd3 {[%clk 0:00:04]}  Rhf8 {[%clk 0:01:25]} 29. Rb1 {[%clk 0:00:04]}  Rf3+ {[%clk 0:01:21]} 30. Kd2 {[%clk 0:00:03]}  Nb3+ {[%clk 0:01:20]} 31. Kc3 {[%clk 0:00:02]}  Rfxd3+ {[%clk 0:01:21]} 0-1


[Site "https://www.chess.com"]

[Event "Titled Tuesday Blitz January 10 Late 2023"]
[White "Marcolino, Daniel Mattos"]
[Black "Szyszylo, Rafal"]
[WhiteFideId "2106841"]
[BlackFideId "1109626"]
[WhiteElo "2006"]
[BlackElo "2091"]
[Result "1-0"]
[Round "04"]
[TimeControl "180+2"]
[Date "2023.01.10"]
[WhiteClock "0:00:13"]
[BlackClock "0:00:06"]

1. d4 {[%clk 0:00:00]}  d6 {[%clk 0:00:00]} 2. Nf3 {[%clk 0:03:00]}  Nf6 {[%clk 0:03:00]} 3. g3 {[%clk 0:03:01]}  g6 {[%clk 0:03:01]} 4. Bg2 {[%clk 0:03:01]}  Bg7 {[%clk 0:03:01]} 5. O-O {[%clk 0:03:01]}  O-O {[%clk 0:03:02]} 6. b3 {[%clk 0:03:02]}  a6 {[%clk 0:03:03]} 7. Bb2 {[%clk 0:03:02]}  c6 {[%clk 0:03:01]} 8. Nbd2 {[%clk 0:03:03]}  b5 {[%clk 0:03:01]} 9. e4 {[%clk 0:03:01]}  Bb7 {[%clk 0:03:00]} 10. Qe2 {[%clk 0:03:01]}  Nbd7 {[%clk 0:03:00]} 11. a4 {[%clk 0:03:00]}  e5 {[%clk 0:02:57]} 12. dxe5 {[%clk 0:03:00]}  Ng4 {[%clk 0:02:53]} 13. Rfd1 {[%clk 0:02:50]}  Ngxe5 {[%clk 0:02:49]} 14. Nxe5 {[%clk 0:02:33]}  dxe5 {[%clk 0:02:39]} 15. Ba3 {[%clk 0:02:25]}  Re8 {[%clk 0:02:38]} 16. Nf1 {[%clk 0:02:10]}  Bf8 {[%clk 0:02:37]} 17. Bb2 {[%clk 0:02:07]}  Qc7 {[%clk 0:02:32]} 18. Ne3 {[%clk 0:01:58]}  Nc5 {[%clk 0:02:27]} 19. h4 {[%clk 0:01:56]}  Ne6 {[%clk 0:02:23]} 20. h5 {[%clk 0:01:48]}  Bc5 {[%clk 0:02:16]} 21. Ng4 {[%clk 0:01:41]}  Nd4 {[%clk 0:02:07]} 22. Bxd4 {[%clk 0:01:37]}  Bxd4 {[%clk 0:01:49]} 23. Nf6+ {[%clk 0:01:29]}  Kh8 {[%clk 0:01:48]} 24. Nxe8 {[%clk 0:01:15]}  Rxe8 {[%clk 0:01:47]} 25. Rac1 {[%clk 0:01:11]}  b4 {[%clk 0:01:46]} 26. hxg6 {[%clk 0:01:09]}  fxg6 {[%clk 0:01:43]} 27. Rd3 {[%clk 0:01:01]}  c5 {[%clk 0:01:40]} 28. Rf3 {[%clk 0:00:57]}  Kg7 {[%clk 0:01:38]} 29. g4 {[%clk 0:00:54]}  Bc8 {[%clk 0:01:22]} 30. Bh3 {[%clk 0:00:32]}  g5 {[%clk 0:01:19]} 31. Kh2 {[%clk 0:00:27]}  Re6 {[%clk 0:00:55]} 32. Re1 {[%clk 0:00:20]}  Rh6 {[%clk 0:00:46]} 33. Rg1 {[%clk 0:00:19]}  Qc6 {[%clk 0:00:46]} 34. Rf5 {[%clk 0:00:18]}  Bxf5 {[%clk 0:00:32]} 35. gxf5 {[%clk 0:00:17]}  Kf6 {[%clk 0:00:31]} 36. Qg4 {[%clk 0:00:18]}  Bxf2 {[%clk 0:00:26]} 37. Qxg5+ {[%clk 0:00:16]}  Kf7 {[%clk 0:00:06]} 38. Qg7+ {[%clk 0:00:16]}  Ke8 {[%clk 0:00:06]} 39. Qg8+ {[%clk 0:00:16]}  Ke7 {[%clk 0:00:06]} 40. Rg7+ {[%clk 0:00:13]} 1-0


[Site "https://www.chess.com"]

[Event "Titled Tuesday Blitz January 10 Late 2023"]
[White "Gracia Alvarez, Gerardo Antonio"]
[Black "Rodrigues, Leonardo De Miranda"]
[WhiteFideId "5109124"]
[BlackFideId "2108658"]
[WhiteElo "2238"]
[BlackElo "2112"]
[Result "0-1"]
[Round "04"]
[TimeControl "180+2"]
[Date "2023.01.10"]
[WhiteClock "0:00:06"]
[BlackClock "0:00:21"]

1. d4 {[%clk 0:00:00]}  Nf6 {[%clk 0:00:00]} 2. Bf4 {[%clk 0:03:00]}  c5 {[%clk 0:02:58]} 3. e3 {[%clk 0:03:00]}  d5 {[%clk 0:02:53]} 4. Nf3 {[%clk 0:02:59]}  Nc6 {[%clk 0:02:50]} 5. Nbd2 {[%clk 0:02:58]}  Bg4 {[%clk 0:02:49]} 6. c3 {[%clk 0:02:58]}  e6 {[%clk 0:02:47]} 7. Qb3 {[%clk 0:02:56]}  Qb6 {[%clk 0:02:46]} 8. h3 {[%clk 0:02:55]}  Bxf3 {[%clk 0:02:45]} 9. Nxf3 {[%clk 0:02:50]}  c4 {[%clk 0:02:43]} 10. Qc2 {[%clk 0:02:49]}  Be7 {[%clk 0:02:43]} 11. Be2 {[%clk 0:02:30]}  Qa5 {[%clk 0:02:30]} 12. O-O {[%clk 0:02:29]}  b5 {[%clk 0:02:28]} 13. b3 {[%clk 0:02:21]}  O-O {[%clk 0:02:28]} 14. bxc4 {[%clk 0:02:19]}  bxc4 {[%clk 0:02:21]} 15. Nd2 {[%clk 0:02:14]}  Qd8 {[%clk 0:02:15]} 16. e4 {[%clk 0:02:14]}  Qd7 {[%clk 0:01:56]} 17. Rab1 {[%clk 0:02:10]}  Bd8 {[%clk 0:01:44]} 18. Rb2 {[%clk 0:02:07]}  Bc7 {[%clk 0:01:36]} 19. Rb7 {[%clk 0:02:01]}  Rfc8 {[%clk 0:01:32]} 20. Rfb1 {[%clk 0:01:57]}  Nd8 {[%clk 0:01:25]} 21. Rxc7 {[%clk 0:01:57]}  Rxc7 {[%clk 0:01:22]} 22. Bxc7 {[%clk 0:01:52]}  Qxc7 {[%clk 0:01:23]} 23. Qa4 {[%clk 0:01:51]}  Qc6 {[%clk 0:01:24]} 24. Qxc6 {[%clk 0:01:44]}  Nxc6 {[%clk 0:01:13]} 25. Rb7 {[%clk 0:01:36]}  Rb8 {[%clk 0:01:14]} 26. Rc7 {[%clk 0:01:28]}  Nd8 {[%clk 0:01:01]} 27. e5 {[%clk 0:01:27]}  Ne8 {[%clk 0:00:50]} 28. Rxa7 {[%clk 0:01:17]}  Kf8 {[%clk 0:00:49]} 29. Nf3 {[%clk 0:01:18]}  Rb1+ {[%clk 0:00:47]} 30. Bf1 {[%clk 0:00:48]}  h6 {[%clk 0:00:41]} 31. a4 {[%clk 0:00:44]}  Nc6 {[%clk 0:00:39]} 32. Ra6 {[%clk 0:00:41]}  Nb8 {[%clk 0:00:34]} 33. Ra8 {[%clk 0:00:38]}  Nc7 {[%clk 0:00:30]} 34. Ra7 {[%clk 0:00:37]}  Nba6 {[%clk 0:00:27]} 35. g4 {[%clk 0:00:37]}  Ke8 {[%clk 0:00:23]} 36. g5 {[%clk 0:00:20]}  Kd7 {[%clk 0:00:23]} 37. gxh6 {[%clk 0:00:18]}  gxh6 {[%clk 0:00:23]} 38. Kg2 {[%clk 0:00:15]}  Kc8 {[%clk 0:00:23]} 39. Be2 {[%clk 0:00:15]}  Kb8 {[%clk 0:00:24]} 40. Rxc7 {[%clk 0:00:09]}  Kxc7 {[%clk 0:00:24]} 41. Nh2 {[%clk 0:00:09]}  Rc1 {[%clk 0:00:24]} 42. Ng4 {[%clk 0:00:09]}  Rxc3 {[%clk 0:00:23]} 43. Nxh6 {[%clk 0:00:10]}  Nb4 {[%clk 0:00:22]} 44. Nxf7 {[%clk 0:00:10]}  Rc2 {[%clk 0:00:21]} 45. Kf3 {[%clk 0:00:09]}  Nd3 {[%clk 0:00:21]} 46. h4 {[%clk 0:00:06]}  Ne1+ {[%clk 0:00:20]} 47. Ke3 {[%clk 0:00:05]}  Ng2+ {[%clk 0:00:20]} 48. Kf3 {[%clk 0:00:06]}  Nxh4+ {[%clk 0:00:21]} 0-1


[Site "https://www.chess.com"]

[Event "Titled Tuesday Blitz January 10 Late 2023"]
[White "Silva, Caio Henrique Angelico"]
[Black "Altman, Joshua"]
[WhiteFideId "22777210"]
[BlackFideId "426210"]
[WhiteElo "2129"]
[BlackElo "2120"]
[Result "1-0"]
[Round "04"]
[TimeControl "180+2"]
[Date "2023.01.10"]
[WhiteClock "0:00:40"]
[BlackClock "0:00:48"]

1. Nf3 {[%clk 0:00:00]}  Nf6 {[%clk 0:00:00]} 2. g3 {[%clk 0:03:00]}  b6 {[%clk 0:02:58]} 3. Bg2 {[%clk 0:02:58]}  Bb7 {[%clk 0:02:57]} 4. O-O {[%clk 0:02:59]}  e6 {[%clk 0:02:58]} 5. b3 {[%clk 0:02:57]}  Be7 {[%clk 0:02:58]} 6. Bb2 {[%clk 0:02:57]}  O-O {[%clk 0:02:58]} 7. c4 {[%clk 0:02:58]}  c5 {[%clk 0:02:58]} 8. d4 {[%clk 0:02:58]}  cxd4 {[%clk 0:02:59]} 9. Nxd4 {[%clk 0:02:58]}  Bxg2 {[%clk 0:02:59]} 10. Kxg2 {[%clk 0:02:58]}  Nc6 {[%clk 0:02:59]} 11. Nxc6 {[%clk 0:02:59]}  dxc6 {[%clk 0:02:58]} 12. Qxd8 {[%clk 0:02:58]}  Rfxd8 {[%clk 0:02:58]} 13. Nc3 {[%clk 0:02:59]}  Rd2 {[%clk 0:02:57]} 14. Rab1 {[%clk 0:02:53]}  Bb4 {[%clk 0:02:57]} 15. Nd1 {[%clk 0:02:54]}  Rxe2 {[%clk 0:02:45]} 16. a3 {[%clk 0:02:15]}  Bc5 {[%clk 0:02:41]} 17. b4 {[%clk 0:02:14]}  Be7 {[%clk 0:02:34]} 18. Ne3 {[%clk 0:02:14]}  Rd8 {[%clk 0:02:33]} 19. Kf3 {[%clk 0:02:12]}  Red2 {[%clk 0:02:26]} 20. Bc3 {[%clk 0:02:07]}  R2d3 {[%clk 0:02:13]} 21. Rbc1 {[%clk 0:01:49]}  h6 {[%clk 0:02:11]} 22. Ke2 {[%clk 0:01:40]}  Ne4 {[%clk 0:02:09]} 23. Nd5 {[%clk 0:01:40]}  R8xd5 {[%clk 0:02:06]} 24. cxd5 {[%clk 0:01:20]}  Rxc3 {[%clk 0:01:22]} 25. dxc6 {[%clk 0:01:14]}  Bd6 {[%clk 0:01:22]} 26. f3 {[%clk 0:01:12]}  Rxc1 {[%clk 0:01:16]} 27. Rxc1 {[%clk 0:01:07]}  Nf6 {[%clk 0:01:00]} 28. c7 {[%clk 0:01:07]}  Bxc7 {[%clk 0:01:00]} 29. Rxc7 {[%clk 0:01:08]}  a5 {[%clk 0:01:00]} 30. bxa5 {[%clk 0:01:09]}  bxa5 {[%clk 0:01:00]} 31. Rc5 {[%clk 0:01:03]}  a4 {[%clk 0:01:00]} 32. Ra5 {[%clk 0:01:03]}  Nd5 {[%clk 0:00:59]} 33. Kd3 {[%clk 0:01:03]}  Nb6 {[%clk 0:01:00]} 34. Ra6 {[%clk 0:01:01]}  Nd7 {[%clk 0:00:54]} 35. Ra8+ {[%clk 0:01:00]}  Kh7 {[%clk 0:00:54]} 36. Ra7 {[%clk 0:00:52]}  Ne5+ {[%clk 0:00:55]} 37. Ke4 {[%clk 0:00:53]}  Nc4 {[%clk 0:00:53]} 38. Rxa4 {[%clk 0:00:52]}  f5+ {[%clk 0:00:51]} 39. Kd4 {[%clk 0:00:50]}  Nd2 {[%clk 0:00:49]} 40. Ke3 {[%clk 0:00:49]}  Nf1+ {[%clk 0:00:48]} 41. Kf2 {[%clk 0:00:46]}  Nd2 {[%clk 0:00:48]} 42. Rb4 {[%clk 0:00:45]}  e5 {[%clk 0:00:48]} 43. Ke2 {[%clk 0:00:40]} 1-0


[Site "https://www.chess.com"]

[Event "Titled Tuesday Blitz January 10 Late 2023"]
[White "Rose, Felix"]
[Black "Reprintsev, Alexander"]
[WhiteFideId "5105722"]
[BlackFideId "14100541"]
[WhiteElo "2091"]
[BlackElo "2253"]
[Result "0-1"]
[Round "04"]
[TimeControl "180+2"]
[Date "2023.01.10"]
[WhiteClock "0:00:09"]
[BlackClock "0:00:29"]

1. e4 {[%clk 0:00:00]}  d5 {[%clk 0:00:00]} 2. exd5 {[%clk 0:03:00]}  Qxd5 {[%clk 0:02:20]} 3. Nc3 {[%clk 0:03:00]}  Qa5 {[%clk 0:02:20]} 4. d4 {[%clk 0:03:00]}  Nf6 {[%clk 0:02:19]} 5. Bd2 {[%clk 0:03:01]}  Bg4 {[%clk 0:02:19]} 6. Nf3 {[%clk 0:03:00]}  e6 {[%clk 0:02:18]} 7. h3 {[%clk 0:02:54]}  Bxf3 {[%clk 0:02:17]} 8. Qxf3 {[%clk 0:02:54]}  c6 {[%clk 0:02:11]} 9. O-O-O {[%clk 0:02:54]}  Nbd7 {[%clk 0:02:12]} 10. g4 {[%clk 0:02:49]}  Bd6 {[%clk 0:02:09]} 11. Kb1 {[%clk 0:02:49]}  Qc7 {[%clk 0:02:01]} 12. g5 {[%clk 0:02:48]}  Nd5 {[%clk 0:01:59]} 13. Ne4 {[%clk 0:02:47]}  Bf4 {[%clk 0:01:58]} 14. c4 {[%clk 0:02:42]}  Bxd2 {[%clk 0:01:58]} 15. cxd5 {[%clk 0:02:27]}  Bf4 {[%clk 0:01:57]} 16. dxe6 {[%clk 0:02:22]}  fxe6 {[%clk 0:01:52]} 17. Qh5+ {[%clk 0:01:46]}  g6 {[%clk 0:01:51]} 18. Qg4 {[%clk 0:01:43]}  O-O-O {[%clk 0:01:50]} 19. Bc4 {[%clk 0:01:43]}  Kb8 {[%clk 0:01:47]} 20. Bxe6 {[%clk 0:01:34]}  Nb6 {[%clk 0:01:47]} 21. Nf6 {[%clk 0:01:30]}  Ka8 {[%clk 0:01:45]} 22. h4 {[%clk 0:01:21]}  h5 {[%clk 0:01:31]} 23. Qf3 {[%clk 0:01:21]}  Bd6 {[%clk 0:01:20]} 24. Qe4 {[%clk 0:01:08]}  Qg7 {[%clk 0:01:15]} 25. Bb3 {[%clk 0:01:05]}  Be7 {[%clk 0:01:13]} 26. Rhg1 {[%clk 0:01:00]}  Bxf6 {[%clk 0:01:12]} 27. gxf6 {[%clk 0:00:25]}  Qxf6 {[%clk 0:01:11]} 28. Rxg6 {[%clk 0:00:25]}  Qxf2 {[%clk 0:01:11]} 29. Rg5 {[%clk 0:00:23]}  Rhe8 {[%clk 0:01:10]} 30. Qf5 {[%clk 0:00:21]}  Qe2 {[%clk 0:01:02]} 31. Rxh5 {[%clk 0:00:19]}  Nd5 {[%clk 0:00:59]} 32. Rh7 {[%clk 0:00:15]}  Ne3 {[%clk 0:00:58]} 33. Qf7 {[%clk 0:00:12]}  Qb5 {[%clk 0:00:50]} 34. Rc1 {[%clk 0:00:12]}  Rb8 {[%clk 0:00:49]} 35. h5 {[%clk 0:00:11]}  Qd3+ {[%clk 0:00:44]} 36. Ka1 {[%clk 0:00:11]}  Rf8 {[%clk 0:00:43]} 37. Qg7 {[%clk 0:00:09]}  Rf1 {[%clk 0:00:32]} 38. Qg6 {[%clk 0:00:09]}  Rxc1# {[%clk 0:00:29]} 0-1


[Site "https://www.chess.com"]

[Event "Titled Tuesday Blitz January 10 Late 2023"]
[White "Novikova, Galina"]
[Black "Marin Ramirez, Gerardo"]
[WhiteFideId "4157095"]
[BlackFideId "3901068"]
[WhiteElo "2073"]
[BlackElo "2127"]
[Result "1-0"]
[Round "04"]
[TimeControl "180+2"]
[Date "2023.01.10"]
[WhiteClock "0:01:21"]
[BlackClock "0:00:07"]

1. e4 {[%clk 0:00:00]}  c5 {[%clk 0:00:00]} 2. Nf3 {[%clk 0:03:00]}  d6 {[%clk 0:02:31]} 3. d4 {[%clk 0:03:00]}  cxd4 {[%clk 0:02:32]} 4. Nxd4 {[%clk 0:03:00]}  Nf6 {[%clk 0:02:33]} 5. Nc3 {[%clk 0:03:01]}  a6 {[%clk 0:02:33]} 6. h3 {[%clk 0:03:01]}  e6 {[%clk 0:02:33]} 7. g4 {[%clk 0:03:02]}  h6 {[%clk 0:02:26]} 8. Bg2 {[%clk 0:03:01]}  Be7 {[%clk 0:02:27]} 9. Be3 {[%clk 0:03:01]}  g5 {[%clk 0:02:26]} 10. Qd2 {[%clk 0:03:01]}  Nfd7 {[%clk 0:02:25]} 11. O-O-O {[%clk 0:03:01]}  Ne5 {[%clk 0:02:13]} 12. b3 {[%clk 0:03:01]}  Qa5 {[%clk 0:02:13]} 13. Kb1 {[%clk 0:02:59]}  Bd7 {[%clk 0:02:00]} 14. f4 {[%clk 0:02:58]}  gxf4 {[%clk 0:01:48]} 15. Bxf4 {[%clk 0:02:57]}  Nbc6 {[%clk 0:01:45]} 16. Rhf1 {[%clk 0:02:58]}  Ng6 {[%clk 0:01:39]} 17. Be3 {[%clk 0:02:49]}  Nb4 {[%clk 0:01:16]} 18. Kb2 {[%clk 0:02:46]}  Rc8 {[%clk 0:01:11]} 19. a3 {[%clk 0:02:20]}  Nc6 {[%clk 0:00:58]} 20. Nde2 {[%clk 0:02:21]}  h5 {[%clk 0:00:57]} 21. g5 {[%clk 0:02:16]}  h4 {[%clk 0:00:54]} 22. Nc1 {[%clk 0:02:12]}  b5 {[%clk 0:00:50]} 23. Qf2 {[%clk 0:02:03]}  b4 {[%clk 0:00:39]} 24. Qxf7+ {[%clk 0:02:01]}  Kd8 {[%clk 0:00:35]} 25. axb4 {[%clk 0:01:40]}  Qxb4 {[%clk 0:00:33]} 26. N1a2 {[%clk 0:01:40]}  Qb7 {[%clk 0:00:33]} 27. Qxg6 {[%clk 0:01:38]}  Ne5 {[%clk 0:00:19]} 28. Qg7 {[%clk 0:01:38]}  Re8 {[%clk 0:00:19]} 29. Kc1 {[%clk 0:01:35]}  d5 {[%clk 0:00:20]} 30. exd5 {[%clk 0:01:25]}  Ba3+ {[%clk 0:00:15]} 31. Kb1 {[%clk 0:01:20]}  Nc4 {[%clk 0:00:15]} 32. dxe6 {[%clk 0:01:21]}  Rxe6 {[%clk 0:00:07]} 33. Rf8+ {[%clk 0:01:21]} 1-0


[Site "https://www.chess.com"]